Cogmind - Beta 14 @@@ ROGUE MODE // 2024.08.15 @ 00:24:57 Player: Wotf Result: Destroyed self with Rocket Launcher Performance ------------- Evolutions (0) 0 Regions Visited (4) 800 Robots Destroyed (31) 155 Value Destroyed (390) 390 Prototype IDs (26) 520 Alien Tech Used (0) 0 Bonus (374) 374 TOTAL SCORE: 2239 Bonus ------- Follower Combat Kills 74 Aligned with FarCom 300 Cogmind --------- Core Integrity 0/250 Matter 132/300 Energy 100/100 System Corruption 0% Temperature Cool (0) Movement Core (750) Ox14 Location -9/Mines Parts ------- > --- POWER (1) -------- (None) > --- PROPULSION (2) --- (None) > --- UTILITY (2) ------ High-capacity Storage Unit > --- WEAPON (2) ------- Rocket Launcher > --- INVENTORY (20) --- Heavy Ion Engine Flight Unit Flight Unit Flight Unit Flight Unit Flight Unit Superbattery (1500) Large Matter Pod (150) Signal Interpreter ECM Suite Light Armor Plating Hacking Suite Hacking Suite Heavy Battle Rifle Light Cannon Light Cannon Light Cannon Mining Claw Peak State ------------ > --- POWER ------------ Heavy Ion Engine > --- PROPULSION ------- Light Treads Light Treads > --- UTILITY ---------- High-capacity Storage Unit Seismic Detector > --- WEAPON ----------- Light Cannon Rocket Launcher > --- INVENTORY -------- Heavy Ion Engine Flight Unit Flight Unit Flight Unit Flight Unit Flight Unit Superbattery Large Matter Pod Signal Interpreter ECM Suite Light Armor Plating Hacking Suite Hacking Suite Heavy Battle Rifle Light Cannon Light Cannon Grenade Launcher Rocket Launcher Rocket Launcher Mining Claw [Rating: 14] Favorites ----------- Power Heavy Ion Engine Engine Heavy Ion Engine Propulsion Light Treads Treads Light Treads Utility High-capacity Storage Unit Device Seismic Detector Storage High-capacity Storage Unit Processor Transport Network Coupler Weapon Light Cannon Ballistic Gun Assault Rifle Ballistic Cannon Light Cannon Launcher Rocket Launcher Build | -11 -10 -10 -10 -9 ------- Run | Yrd Mat Min Exi Min Slots Evolved . | . . . . . Power . | . . . . . Propulsion . | . . . . . Utility . | . . . . . Weapon . | . . . . . Parts Attached 36 | 6 24 2 . 4 Power 4 | 1 3 . . . Engine 4 | 1 3 . . . Core . | . . . . . Reactor . | . . . . . Propulsion 6 | 2 4 . . . Treads 6 | 2 4 . . . Leg . | . . . . . Wheel . | . . . . . Hover . | . . . . . Flight . | . . . . . Utility 7 | 1 6 . . . Device 1 | . 1 . . . Storage 5 | 1 4 . . . Processor 1 | . 1 . . . Hackware . | . . . . . Protection . | . . . . . Artifact . | . . . . . Weapon 19 | 2 11 2 . 4 Energy Gun . | . . . . . Energy Cannon . | . . . . . Ballistic Gun 7 | 2 5 . . . Ballistic Cannon 8 | . 6 2 . . Launcher 4 | . . . . 4 Special Weapon . | . . . . . Impact Weapon . | . . . . . Slashing Weapon . | . . . . . Piercing Weapon . | . . . . . Special Melee Weapon . | . . . . . Unidentified Prototypes 1 | . 1 . . . Parts Lost 7 | . . . . 7 Power 1 | . . . . 1 Propulsion 2 | . . . . 2 Utility 1 | . . . . 1 Weapon 3 | . . . . 3 Highest Loss Streak 7 | . . . . 7 To Critical Strikes . | . . . . . Average Slot Usage (%) 99 | . 98 100 100 85 Engine 14 | . 14 14 14 14 Treads 27 | . 28 28 28 23 Device 10 | . 5 14 14 9 Storage 14 | . 14 14 14 14 Processor 3 | . 6 . . . Ballistic Gun 13 | . 22 9 . . Ballistic Cannon 14 | . 5 18 28 . Peak Build Rating 14 | 6 12 12 13 14 Average Rating 11 | 5 10 11 12 11 On Entrance 8 | . 6 11 12 13 Naked Turns . | . . . . . Heaviest Build 92 | 11 92 55 55 55 Greatest Support 40 | 40 40 40 40 40 Greatest Overweight (x) 2 | 1 2 1 1 2 Average Overweight (x) . | . . 1 1 1 Largest Inventory Capacity 25 | 8 25 20 20 20 Average Capacity 19 | 7 18 20 20 20 Most Carried 20 | 7 20 20 20 20 Average Carried 18 | 4 17 19 19 19 Final Capacity 20 | 8 20 20 20 20 Final Carried 20 | 7 20 20 20 18 Class Distribution -------------------- 100% | Mutant Dominant Class ---------------- Mutant | -10/Materials Mutant | -10/Mines Mutant | -10/Exiles Mutant | -9/Mines Resources | -11 -10 -10 -10 -9 ----------- Run | Yrd Mat Min Exi Min Matter Collected 1080 | 268 750 62 . . Remotely . | . . . . . Salvage Created 896 | 86 699 91 . 20 Parts 67 | 1 60 6 . . Haulers Intercepted 2 | . 2 . . . Recyclers Shooed 3 | . 3 . . . Parts Field Recycled . | . . . . . Retrieved Matter . | . . . . . Parts Self-Destructed . | . . . . . Prevented . | . . . . . Kills | -11 -10 -10 -10 -9 ------- Run | Yrd Mat Min Exi Min Combat Hostiles Destroyed 32 | . 14 1 . 17 Guns 10 | . 9 1 . . Cannons 5 | . 5 . . . AOE 17 | . . . . 17 Classes Destroyed 9 | 1 7 . . 1 Worker 4 | . 3 1 . . Builder 1 | . 1 . . . Hauler 2 | . 2 . . . Recycler 5 | 1 3 1 . . Operator 2 | . 2 . . . Watcher 2 | . 2 . . . Swarmer 10 | . 9 1 . . Grunt 5 | . 5 . . . Assembled 17 | . . . . 17 Best Kill Streak 17 | 1 3 1 . 17 Combat Bots Only 17 | . 3 1 . 17 Max Kills in Single Turn 6 | 1 2 1 . 6 Gunslinging . | . . . . . Exploded 6 | . . . . 6 Melee . | . . . . . Uniques/NPCs Destroyed . | . . . . . Combat | -11 -10 -10 -10 -9 -------- Run | Yrd Mat Min Exi Min Hostile Shots Fired 114 | . 69 5 . 40 Missed 35 | . 21 . . 14 Damage Taken 1386 | . 427 43 . 916 Core 270 | . 64 10 . 196 Absorbed by Shields . | . . . . . Regen/Repaired (Parts) 54 | . 54 . . . Core Remaining (%) 100 | 100 . . . . Volleys Fired 93 | 2 75 6 . 10 Largest 2 | 2 2 2 . 2 Hottest 70 | 40 70 70 . 66 Shots Fired 167 | 4 136 12 . 15 Gun 94 | 4 84 6 . . Cannon 58 | . 52 6 . . Launcher 15 | . . . . 15 Special . | . . . . . Kinetic 152 | 4 136 12 . . Thermal . | . . . . . Explosive 15 | . . . . 15 Electromagnetic . | . . . . . Robot Hit Streak 9 | 3 9 3 . 4 Robot Miss Streak 5 | . 5 1 . 3 Penetration Max . | . . . . . Secondary Targets 1 | . 1 . . . Max Gunslinging Chain 1 | . 1 . . . Shots Hit Robots 79 | 3 63 7 . 6 Core Hits 82 | 1 33 3 . 45 Critical Kills . | . . . . . Critical Parts Destroyed . | . . . . . Critical Strikes . | . . . . . Melee Attacks . | . . . . . Impact . | . . . . . Slashing . | . . . . . Piercing . | . . . . . Sneak Attacks . | . . . . . Combat Hostiles . | . . . . . Follow-up Attacks . | . . . . . Damage Inflicted 2386 | 36 1035 96 . 1219 Guns 665 | 36 584 45 . . Cannons 501 | . 451 50 . . Explosions 1219 | . . . . 1219 Melee . | . . . . . Ramming 1 | . . 1 . . Kinetic 1166 | 36 1035 95 . . Thermal . | . . . . . Explosive 1219 | . . . . 1219 Electromagnetic . | . . . . . Impact . | . . . . . Slashing . | . . . . . Piercing . | . . . . . Highest Corruption . | . . . . . Average Corruption . | . . . . . Corruption Purged . | . . . . . Corruption Blocked . | . . . . . Overload Shots . | . . . . . Overflow Damage 60 | . 6 . . 54 Projectiles 6 | . 6 . . . Explosions 54 | . . . . 54 Melee . | . . . . . Knockbacks 3 | . 3 . . . Impact . | . . . . . Kinetic 3 | . 3 . . . Secondary . | . . . . . Self-Inflicted Damage 144 | . . . . 144 Shots 8 | . . . . 8 Rammed 1 | . . 1 . . Targets Rammed 1 | . . 1 . . Kicked . | . . . . . Crushed . | . . . . . Highest Temperature 78 | . 78 24 . 50 Average Temperature 26 | . 28 11 . 25 Received Heat Transfer 92 | . 72 . . 20 Siege Activations . | . . . . . Robots Corrupted . | . . . . . Combat Hostiles . | . . . . . Parts Fried . | . . . . . Impact Corruptions . | . . . . . Robots Melted . | . . . . . Combat Hostiles . | . . . . . Parts Melted . | . . . . . Heat Transferred . | . . . . . Parts Sabotaged . | . . . . . Parts Stolen . | . . . . . Parts Stripped . | . . . . . Power Chain Reactions . | . . . . . Alert | -11 -10 -10 -10 -9 ------- Run | Yrd Mat Min Exi Min Peak Influence 179 | 5 179 66 . 28 Initial 6 | . 3 6 . . Average 36 | 3 55 12 . 13 Maximum Alert Level . | . . . . . Low Security (%) 100 | 100 100 100 . 100 Level 1 . | . . . . . Level 2 . | . . . . . Level 3 . | . . . . . Level 4 . | . . . . . Level 5 . | . . . . . High Security . | . . . . . Max Security . | . . . . . Squads Dispatched 2 | . 2 . . . Investigation . | . . . . . Extermination . | . . . . . Reinforcement 2 | . 2 . . . Assault . | . . . . . Garrison . | . . . . . Intercept . | . . . . . Searches Triggered . | . . . . . Construction Impeded . | . . . . . Haulers Reinforced . | . . . . . Active Scanning Responses . | . . . . . Cargo Convoy Interrupts . | . . . . . Stealth | -11 -10 -10 -10 -9 --------- Run | Yrd Mat Min Exi Min Distress Signals 1 | . 1 . . . Communications Jammed . | . . . . . Distress Signals . | . . . . . Times Spotted 51 | . 25 3 . 23 Peak Tracking Total 20 | . 4 3 . 20 Tactical Retreats 1 | . . 1 . . Traps | -11 -10 -10 -10 -9 ------- Run | Yrd Mat Min Exi Min Traps Triggered . | . . . . . Indirectly . | . . . . . Trap Hack Attempts . | . . . . . Triggered . | . . . . . Disarmed . | . . . . . Reprogrammed . | . . . . . Reused . | . . . . . Traps Extracted . | . . . . . Installed . | . . . . . Triggered . | . . . . . Machines | -11 -10 -10 -10 -9 ---------- Run | Yrd Mat Min Exi Min Machines Disabled 2 | . 2 . . . Max in Single Turn 1 | . 1 . . . Machines Repaired . | . . . . . Machines Dismantled . | . . . . . Machines Sabotaged . | . . . . . Overloaded Fab Kills . | . . . . . Hacking | -11 -10 -10 -10 -9 --------- Run | Yrd Mat Min Exi Min Machines Accessed 11 | . 8 . 3 . Terminals 6 | . 6 . . . Fabricators . | . . . . . Repair Stations 1 | . 1 . . . Recycling Units 1 | . 1 . . . Scanalyzers . | . . . . . Garrison Access . | . . . . . Total Hacks 25 | . 20 . 5 . Successful 13 | . 8 . 5 . Failed 12 | . 12 . . . Catastrophic 4 | . 4 . . . Database Lockouts . | . . . . . Manual 6 | . 5 . 1 . Terminals 16 | . 16 . . . Fabricators . | . . . . . Repair Stations 2 | . 2 . . . Recycling Units 2 | . 2 . . . Scanalyzers . | . . . . . Garrison Access . | . . . . . Terminal Hacks 9 | . 4 . 5 . Record 4 | . . . 4 . Prototype ID Bank 1 | . 1 . . . Branch Access Points 1 | . 1 . . . Recall Reinforcements 1 | . 1 . . . Hauler Manifests 1 | . 1 . . . Derelict Proto ID Bank 1 | . . . 1 . Fabricator Hacks . | . . . . . Repair Station Hacks 2 | . 2 . . . Scan Component 1 | . 1 . . . Repair 1 | . 1 . . . Recycling Unit Hacks 2 | . 2 . . . Retrieve Matter 2 | . 2 . . . Scanalyzer . | . . . . . Garrison Access Hacks . | . . . . . Unauthorized Hacks . | . . . . . Terminals . | . . . . . Fabricators . | . . . . . Repair Stations . | . . . . . Recycling Units . | . . . . . Scanalyzers . | . . . . . Garrison Access . | . . . . . Data Cores Recovered . | . . . . . Used . | . . . . . Hacking Detections 7 | . 7 . . . Full Trace Events . | . . . . . Feedback Events . | . . . . . Feedback Blocked . | . . . . . Robot Schematics Acquired . | . . . . . Robots Built . | . . . . . Authchips . | . . . . . Time . | . . . . . Total Robot Build Rating . | . . . . . Part Schematics Acquired . | . . . . . Parts Built . | . . . . . Authchips . | . . . . . Time . | . . . . . Total Part Build Rating . | . . . . . Parts Repaired 1 | . 1 . . . Time 26 | . 26 . . . Parts Recycled . | . . . . . Recycled Matter . | . . . . . Retrieved Matter 98 | . 98 . . . Retrieved Components . | . . . . . Parts Scanalyzed . | . . . . . Part Schematics Acquired . | . . . . . Parts Damaged . | . . . . . Bothacking | -11 -10 -10 -10 -9 ------------ Run | Yrd Mat Min Exi Min Used RIF Installer . | . . . . . Robots Hacked . | . . . . . Non-combat . | . . . . . Combat . | . . . . . Robot Hacks Applied . | . . . . . Relay Couplers Released . | . . . . . Fabnet Peak Effective % . | . . . . . Robots Rewired . | . . . . . Allies Hacked . | . . . . . Hacks Repelled . | . . . . . Allies | -11 -10 -10 -10 -9 -------- Run | Yrd Mat Min Exi Min Total Allies 3 | . . 3 . . Largest Group 2 | . . 2 1 . Highest-Rated Group 45 | . . 45 31 . Highest-Rated Ally 31 | . . 31 31 . Total Orders . | . . . . . Ally Attacks 9 | . . 9 . . Total Damage 186 | . . 186 . . Kills 4 | . . 4 . . Allies Corrupted . | . . . . . Allies Melted . | . . . . . Intel | -11 -10 -10 -10 -9 ------- Run | Yrd Mat Min Exi Min Robot Analysis Total . | . . . . . Derelict Logs Recovered 1 | . . 1 . . Drone Launches . | . . . . . Drone Recoveries . | . . . . . Exploration | -11 -10 -10 -10 -9 ------------- Run | Yrd Mat Min Exi Min Turns Passed 5053 | 96 2199 1649 1075 34 Spaces Moved 2035 | 51 885 663 434 2 Core 7 | 7 . . . . Treads 2028 | 44 885 663 434 2 Legs . | . . . . . Wheels . | . . . . . Hover . | . . . . . Flight . | . . . . . Fastest Speed 50 | 50 160 240 240 240 Average Speed 226 | 146 213 240 240 280 Slowest Speed 320 | 160 320 240 240 320 Overloaded Moves . | . . . . . Propulsion Burnouts . | . . . . . Robots Hopped . | . . . . . Cave-ins Triggered . | . . . . . Exploration Rate (%) 60 | 4 98 98 90 12 Regions Visited 4 Branch Regions 3 Pre-discovered Areas 2 | . . 1 1 . Known Exits Taken 1 | . 1 . . . Unknown Exits Taken 3 | 1 . 1 1 . Scrap Searched 1 | . . 1 . . Spaces Dug . | . . . . . Terrain Destroyed 99 | . . . . 99 Melee . | . . . . . Projectile . | . . . . . AOE 99 | . . . . 99 Terrain Rammed . | . . . . . Walls Destroyed . | . . . . . Machines Disabled . | . . . . . Actions | -11 -10 -10 -10 -9 --------- Run | Yrd Mat Min Exi Min Total 2334 | 66 1075 708 469 16 Wait 97 | . 28 35 34 . Move 2031 | 50 884 662 433 2 Hop . | . . . . . Pick Up 42 | 8 32 1 1 . Fast Attach 11 | 5 6 . . . Attach 3 | 1 . . . 2 Detach 3 | . 3 . . . Swap 22 | . 18 2 . 2 Drop 31 | . 29 1 1 . Fire 93 | 2 75 6 . 10 Melee . | . . . . . Ram . | . . . . . Kick . | . . . . . Crush 1 | . . 1 . . Escape Stasis . | . . . . . Rewire . | . . . . . Trap . | . . . . . Miscellaneous . | . . . . . Route ------- -11/Scrapyard -10/Materials (discovered 4 exits: [*Mat x3] / *Min) -10/Mines (discovered 3 exits: [*Mat x2] / *Exi) -10/Exiles (discovered 2 exits: [*Min x2]) -9/Mines History --------- Turn | Location | Event 9 | -11/Scrapyard | Discovered new exit (range 16) 97 | -11/Scrapyard | Entered Materials 185 | -10/Materials | Identified exit to Mines 317 | -10/Materials | Build established: Mutant 403 | -10/Materials | Discovered new exit (range 15) 1551 | -10/Materials | Discovered new exit (range 16) 1745 | -10/Materials | Discovered new exit (range 12) 2190 | -10/Materials | Repaired Lgt. Armor Plating 2296 | -10/Materials | Entered Mines 2299 | -10/Mines | Received a Mining Laser from a helpful Derelict 2325 | -10/Mines | Deemed a non-threat by the Exiles lab entrance 2325 | -10/Mines | Discovered new exit (range 5) 2426 | -10/Mines | Learned location of Zion (-7) 3414 | -10/Mines | Discovered new exit (range 9) 3486 | -10/Mines | A weapon hastily lodged in a ceiling crevice suddenly fell to the ground 3743 | -10/Mines | Discovered new exit (range 7) 3945 | -10/Mines | Entered Exiles 3945 | -10/Exiles | Accompanied by 1 ally 3975 | -10/Exiles | Led the pair of lost Derelicts to a safe place 3984 | -10/Exiles | Discovered new exit (range 15) 4053 | -10/Exiles | Met 8R-AWN 4092 | -10/Exiles | Met EX-HEX 4159 | -10/Exiles | Met EX-BIN 4193 | -10/Exiles | Aligned with FarCom system 4195 | -10/Exiles | Given EX-Vault access code 4257 | -10/Exiles | Opened EX-Vault 4275 | -10/Exiles | Found Superbattery 4353 | -10/Exiles | Warned to stay clear of 0b10 Research branches 4429 | -10/Exiles | Met EX-DEC 4572 | -10/Exiles | Visited The Gauntlet 4999 | -10/Exiles | Discovered new exit (range 11) 5020 | -10/Exiles | Left Exiles lab with Superbattery 5020 | -10/Exiles | Entered Mines 5021 | -9/Mines | Assembled infested the area 5037 | -9/Mines | Core integrity fell below 50% 5048 | -9/Mines | Core integrity fell below 20% 5054 | -9/Mines | Destroyed self with Rocket Launcher Last Messages --------------- Destroyed Asb. F-torch. as-97296 destroyed. [Achievement: Exterminator] Rocket Launcher destroyed. as-21982 destroyed. The unstable cave ceiling collapses. Seismic Detector destroyed. as-85061 destroyed. as-40146 destroyed. The unstable cave ceiling collapses. Lgt. Treads destroyed. The unstable cave ceiling collapses. as-80629 destroyed. The unstable cave ceiling collapses. Grenade Launcher destroyed. Lgt. Treads destroyed. T-07 Excavator destroyed. The unstable cave ceiling collapses. Hvy. Ion Engine destroyed. Destroyed Hvy. Ion Engine. Map ----- +----------------------------------------------------+ | ?????????????????????????????????????????????????? | | ?????????????????????????????????????????????????? | | ?????????????????????????????????????????????????? | | ?????????????????????????????????????????????????? | | ?????????????????????????????????????????????????? | | ?????????????????????????????????????????????????? | | ?????????????????????????????????????????????????? | | ?????????????????????????????????????????????????? | | ?????????????????????????????????????????????????? | | ?????????????????????????????????????????????????? | | ?????????????????????????? ??????????????????????? | | ?????????????????????????? ??????????????????????? | | ?????????????????????????? ##????????????????????? | | ?????????????????????????? ##???????????????????? | | ?????????????????????????? ##??????????????????? | | ?????????????????????????? #??????????????????? | | ?????????????????????????# ???????????????????? | | ????????????????????????? ???????????????????? | | ????????????????????????? ????????????????????? | | ????????????????????????? ????????????????????? | | ??????????????????????#### #????????????????????? | | ?????????????????????## #######??????????????? | | ????????????????????## #??????????????? | | ?????????????????## # ## #?????????? | | ???????????# ## d % #????????? | | ???????????# # @ d ????????? | | ???????????# # ????????? | | ???????????# l #???????? | | ??????????"" ## ????????? | | ??????????? # ????????? | | ???????????# # ?????????? | | ????????????# # # ### ?????????? | | ????????????# # #######??# ??????????? | | ????????????# ??????????# ??????????? | | ?????????????# ### ????????????## # ???????????? | | ????????????? ???#????????????????##????????????? | | ?????????????????????????????????????????????????? | | ?????????????????????????????????????????????????? | | ?????????????????????????????????????????????????? | | ?????????????????????????????????????????????????? | | ?????????????????????????????????????????????????? | | ?????????????????????????????????????????????????? | | ?????????????????????????????????????????????????? | | ?????????????????????????????????????????????????? | | ?????????????????????????????????????????????????? | | ?????????????????????????????????????????????????? | | ?????????????????????????????????????????????????? | | ?????????????????????????????????????????????????? | | ?????????????????????????????????????????????????? | | ?????????????????????????????????????????????????? | +----------------------------------------------------+ Best States ------------- Heat Dissipation 25 Energy Generation 14 Energy Capacity 280 Matter Stores 300 Matter Capacity 300 Sight Range 16 Terrain Scan Density 10 Evasion (%) 40 Recoil Reduction 2 Item Schematics ----------------- None Robot Schematics ------------------ None Fabricated ------------ Nothing Alien Tech Used ----------------- None Achievements -------------- Exterminator Quick And Dirty Challenges ------------ None Game ------ Seed ServoCoreTube Manual? 0 Play Time 00:34:34 Cumulative 35.9 hours Start 2024.08.13 @ 18:58:13 End 2024.08.15 @ 00:24:57 Sessions 5 Manual Loads 0 Difficulty Rogue Special Mode None Game No. 28 Rogue 16 Adventurer 12 Explorer 0 Win Type - Total 0 Types 0/0/0/0/0/0/0/0/0 Lore% 10 Gallery% 22 Achievement% 23 Wizard Run 0 Options --------- Layout 0 ASCII 0 Keyboard 0 Movement Numpad Keybinds 0 Fullscreen 2 Font 18/SmallcapsGlow Map View 76x50 Zoom Use 13% Tactical HUD 0 Map Filters NONE Filters NONE Steam 1 RUN: af88b65a-b916-437f-9017-a3e5469c21ab